[Event "German Bundesliga 2022-23"]
[Site "Germany"]
[Date "2022.10.21"]
[Round "7.2"]
[White "Jones, Gawain C B"]
[Black "Sedlak, Nikola"]
[Result "1/2-1/2"]
[ECO "B10"]
[WhiteElo "2626"]
[BlackElo "2472"]
[Annotator "TA"]
[PlyCount "94"]
[EventDate "2022.10.21"]
[EventType "team-tourn"]
[EventCountry "GER"]
[SourceTitle "playchess.com"]
[Source "ChessBase"]
[SourceQuality "1"]
[TimeControl "40/6000+30:3000+30"]

{[%evp 9,94,1,2,6,27,33,24,27,32,28,41,41,49,39,29,32,45,43,44,55,55,41,42,39,38,43,41,33,41,33,53,52,52,41,51,19,72,68,67,61,85,75,119,120,114,114,116,104,118,118,142,152,174,176,306,303,297,279,313,222,214,151,167,146,112,60,56,0,0,8,55,0,0,0,0,0,0,0,0,0,0,0,0,0,0,0,0]} 1. e4 {[%emt 0:00:30]} c6 {[%emt 0:01:16]} 2. Nf3 {[%emt 0:00:17]} d5 {[%emt 0:00:13]} 3. d3 {[%emt 0:00:04]} Qc7 {[%emt 0:11:41]} 4. Nc3 {[%emt 0:00:20]} dxe4 {[%emt 0:00:20]} 5. dxe4 {[%emt 0:00:15]} e5 {[%emt 0:03:53]} 6. Bc4 {[%emt 0:00:12] B10: Caro-Kann: 2 d3 and 2 c4.} Bg4 {[%emt 0:07:16][%cal Bc8g4,Bg4h5,Bh5g6][%mdl 32]} (6... b5 $5 {[%cal Rb5c4]} 7. Bd3 Nf6 $11) 7. h3 {[%emt 0:05:33]} Bh5 {[%emt 0:00:13]} 8. g4 {[%emt 0:06:13] White has an edge.} Bg6 {[%emt 0:00:48]} 9. Nh4 {[%emt 0:00:07]} Nd7 {[%emt 0:01:00]} 10. Qf3 {[%emt 0:03:46]} Nb6 {[%emt 0:05:15] [#]} 11. Bb3 $146 {[%emt 0:00:52]} ({Predecessor:} 11. Nxg6 hxg6 12. Bb3 Nf6 13. a4 Bb4 14. a5 Nc8 15. Bg5 Nh7 16. Be3 Nd6 17. a6 {1-0 (37) Dragun,K (2561)-Liang,J (2367) Charlotte 2020}) 11... O-O-O {[%emt 0:02:53]} 12. Bd2 {[%emt 0:14:50]} Nf6 {[%emt 0:01:24]} 13. O-O-O {[%emt 0:06:44]} Kb8 {[%emt 0:04:02]} 14. a3 {[%emt 0:10:21]} Nbd7 {[%emt 0:03:34]} 15. Nxg6 {[%emt 0:20:03]} fxg6 {[%emt 0:00:13]} 16. Qg2 {[%emt 0:00:49]} Bd6 {[%emt 0:08:18]} 17. h4 {[%emt 0:01:25]} Nc5 {[%emt 0:01:31]} 18. Ba2 {[%emt 0:00:31]} Qe7 {[%emt 0:00:29]} 19. f3 {[%emt 0:09:45]} Rd7 {[%emt 0:03:13]} 20. Be3 {[%emt 0:03:02]} Rhd8 {[%emt 0:09:15]} 21. Qf2 {[%emt 0:00:39][%cal Od1d6] Strongly threatening Rxd6!} b6 {[%emt 0:00:06]} 22. h5 {[%emt 0:04:33]} Nb7 {[%emt 0:01:56]} (22... gxh5 $11 23. g5 (23. gxh5 h6 $11) 23... Ne8) 23. hxg6 $16 {[%emt 0:02:17]} hxg6 {[%emt 0:03:01][%cal Od6a3]} 24. b4 {[%emt 0:01:20]} c5 {[%emt 0:05:27]} 25. g5 $36 {[%emt 0:02:27][%mdl 2048] Black is under strong pressure.} Ne8 {[%emt 0:06:11]} 26. Nd5 {[%emt 0:03:11] White has more active pieces. The black rooks are badly placed.} Qf8 {[%emt 0:00:06][%cal Rc5b4] [#]} 27. c3 {[%emt 0:01:00]} Nc7 {[%emt 0:01:32]} 28. Kb1 {[%emt 0:01:47]} Rc8 {[%emt 0:01:21]} 29. Rd3 {[%emt 0:01:51]} Nxd5 {[%emt 0:08:19]} 30. Bxd5 {[%emt 0:00:30]} (30. Rxd5 $6 Rf7 $11) 30... Qe7 {[%emt 0:04:58] Against Be6} 31. Rhd1 {[%emt 0:01:42] Black must now prevent Bxb7.} Rcc7 {[%emt 0:03:04]} (31... Nd8 {keeps fighting.} 32. Qd2 Rdc7) 32. Bxb7 $18 {[%emt 0:03:55]} Kxb7 {[%emt 0:00:22]} 33. Qd2 {[%emt 0:00:22]} Qe6 {[%emt 0:00:23]} 34. Rd5 {[%emt 0:03:03] aiming for Kb2.} (34. Rxd6 Rxd6 35. Qxd6 Qb3+ 36. Ka1 Qxc3+ 37. Ka2 Qxe3 $11) 34... Kc8 {[%emt 0:00:35]} 35. Qd3 {[%emt 0:00:27]} (35. Rxd6 Rxd6 36. Qxd6 Qb3+ 37. Ka1 Qxa3+ 38. Kb1 Qb3+ 39. Ka1 Qxc3+ 40. Kb1 Qb3+ 41. Ka1 Qxe3 42. Qd8+ (42. b5 $2 Qc3+ 43. Kb1 Qb3+ 44. Kc1 Qc3+ 45. Kb1 Qb4+ 46. Kc2 Qc4+ 47. Kb1 Qxb5+ 48. Kc1 Qc4+ 49. Kb1 Qb3+ 50. Kc1 Qc3+ 51. Kb1 Qb3+ 52. Kc1 Qc4+ 53. Kb2 Qb4+ 54. Kc1 Qc3+ 55. Kb1 Qb4+ 56. Kc1 Qc3+ $19) 42... Kb7 43. Qd5+ Ka6 44. Qc4+ Kb7 45. Qd5+ Rc6 46. Qd7+ (46. b5 Qc3+ 47. Kb1 Qb4+ 48. Kc2 Qxb5 $11) 46... Rc7 47. Qd5+ $11) 35... Be7 {[%emt 0:01:04]} 36. Qa6+ {[%emt 0:00:39]} Kb8 {[%emt 0:00:09] [#]} 37. bxc5 {[%emt 0:00:48]} (37. Kb2 $1 $16) 37... Bxc5 $14 {[%emt 0:00:15]} 38. Bxc5 {[%emt 0:01:49]} (38. Bc1 $1 $14) 38... Rxc5 $11 {[%emt 0:00:06]} 39. c4 {[%emt 0:00:44]} Rdxd5 {[%emt 0:02:55]} (39... Ra5 $1 $11 40. Qxa5 (40. Rxa5 Rxd1+ 41. Kc2 Rd7 $11) 40... bxa5 41. Rxd7 Qxc4 42. Rd8+ Kb7 43. R8d7+ Kc6) 40. Rxd5 {[%emt 0:00:07][%mdl 4096] Endgame KQR-KQR} (40. cxd5 $14 Qe7 41. d6) 40... Qh3 {[%emt 0:03:37] The position is equal.} 41. Qa4 {[%emt 0:06:47]} Qf1+ {[%emt 0:05:01]} 42. Rd1 {[%emt 0:07:40]} Qxf3 {[%emt 0:00:54]} 43. Rd8+ {[%emt 0:00:41]} ({Much worse is} 43. Qe8+ Kb7 44. Qd7+ Ka6 $17) 43... Kb7 {[%emt 0:00:06]} 44. Rd7+ $1 {[%emt 0:01:54]} Kc8 {[%emt 0:00:06]} 45. Rxa7 {[%emt 0:04:29][%cal Ra4e8]} Qxe4+ {[%emt 0:00:22]} 46. Kb2 {[%emt 0:00:13][%cal Ra4e8]} Qd4+ {[%emt 0:00:29]} 47. Kb1 {[%emt 0:00:06] Intending Qa6+ and mate. Really sharp!} Qd3+ {[%emt 0:00:06] Blacks defense is rewarded with a draw.  Weighted Error Value: White=0.10 (very precise) /Black=0.13 (very precise)} 1/2-1/2

[Event "German Bundesliga 2022-23"]
[Site "Germany"]
[Date "2022.11.25"]
[Round "7.3"]
[White "Markus, Robert"]
[Black "Efimenko, Zahar"]
[Result "1/2-1/2"]
[ECO "E04"]
[WhiteElo "2608"]
[BlackElo "2583"]
[Annotator "TA"]
[PlyCount "57"]
[EventDate "2022.10.21"]
[EventType "team-tourn"]
[EventCountry "GER"]
[SourceTitle "playchess.com"]
[Source "ChessBase"]
[SourceQuality "1"]
[TimeControl "40/6000+30:3000+30"]

{[%evp 18,57,23,26,23,27,8,19,32,40,41,43,43,41,35,29,47,0,2,7,21,22,17,16,47,26,58,35,58,62,59,62,68,0,0,0,0,0,0,0,0,0]} 1. d4 {[%emt 0:00:06]} Nf6 {[%emt 0:06:55]} 2. c4 {[%emt 0:00:10]} e6 {[%emt 0:00:25]} 3. Nf3 {[%emt 0:00:09]} d5 {[%emt 0:00:26]} 4. g3 {[%emt 0:00:07]} dxc4 {[%emt 0:00:27]} 5. Bg2 {[%emt 0:00:08]} c5 {[%emt 0:00:16]} 6. O-O {[%emt 0:02:43]} Nc6 {[%emt 0:02:06]} 7. Qa4 {[%emt 0:02:43]} Bd7 {[%emt 0:00:37]} 8. Qxc4 {[%emt 0:00:08]} cxd4 {[%emt 0:00:33]} 9. Nxd4 {[%emt 0:00:06]} Rc8 {[%emt 0:00:24]} 10. Nc3 {[%emt 0:06:05]} Nxd4 {[%emt 0:01:05] E04: Open Catalan: 5 Nf3.} 11. Qxd4 {[%emt 0:00:06]} Bc5 {[%emt 0:00:11]} 12. Qf4 {[%emt 0:02:24]} Qb6 {[%emt 0:28:33]} (12... Bc6 {seems wilder.} 13. Rd1 Qb6 14. Bxc6+ Qxc6 15. Be3 O-O) 13. Na4 {[%emt 0:14:29]} Bxa4 {[%emt 0:00:41]} 14. Qxa4+ {[%emt 0:00:06]} Ke7 $1 {[%emt 0:00:10]} 15. e3 {[%emt 0:23:38] [#]} Rhd8 $146 {[%emt 0:02:23]} ({Predecessor:} 15... Rc7 16. a3 Bd6 17. Rb1 Rhc8 18. Bd2 Rc4 19. Qd1 Kf8 20. Bc3 Be7 21. Qd3 Qc7 {1-0 (52) Schubert,V (2228)-Salonen,J (1859) LSS email 2018}) 16. b3 {[%emt 0:01:27]} Bb4 {[%emt 0:08:36]} 17. Ba3 {[%emt 0:05:05]} a5 {[%emt 0:09:30]} 18. Bxb4+ {[%emt 0:02:49]} axb4 {[%emt 0:05:12]} (18... Qxb4 {simplifies} 19. Qxb4+ axb4 20. Bxb7 Rc2) 19. a3 {[%emt 0:00:06]} bxa3 {[%emt 0:09:05]} 20. Qxa3+ {[%emt 0:00:14]} Ke8 {[%emt 0:00:17]} 21. Rfd1 {[%emt 0:08:04]} h6 {[%emt 0:08:57]} 22. h3 {[%emt 0:02:10]} Qb5 {[%emt 0:10:23]} 23. Rxd8+ {[%emt 0:04:23]} Rxd8 {[%emt 0:00:10]} 24. Rc1 {[%emt 0:00:09]} Nd5 {[%emt 0:01:48] Against Rc7} 25. Bxd5 {[%emt 0:15:12]} ({White should try} 25. Rc4 $14) 25... Qxd5 $11 {[%emt 0:03:18] The position is equal.} 26. Rc7 {[%emt 0:00:38][%csl Gc7][%cal Ra3e7] [#]} Rd7 {[%emt 0:01:48] Prevents Qe7+.} 27. Rc8+ {[%emt 0:00:17]} Rd8 {[%emt 0:00:04]} 28. Rc7 {[%emt 0:00:43][%csl Gc7][%cal Ra3e7]} Rd7 {[%emt 0:00:05] Prevents Qe7+.} 29. Rc8+ {[%emt 0:00:22] Weighted Error Value: White=0.10 (very precise) /Black=0.08 (flawless)} 1/2-1/2

[Event "German Bundesliga 2022-23"]
[Site "Germany"]
[Date "2022.10.21"]
[Round "7.3"]
[White "Delchev, Aleksander"]
[Black "Saric, Ivan"]
[Result "0-1"]
[ECO "B22"]
[WhiteElo "2503"]
[BlackElo "2668"]
[Annotator "TA"]
[PlyCount "112"]
[EventDate "2022.10.21"]
[EventType "team-tourn"]
[EventCountry "GER"]
[SourceTitle "playchess.com"]
[Source "ChessBase"]
[SourceQuality "1"]
[TimeControl "40/6000+30:3000+30"]

{[%evp 22,112,0,10,0,0,0,0,0,0,0,0,0,0,0,0,0,0,0,0,0,0,6,-9,-3,-11,0,-6,0,-21,-30,-34,0,-25,-18,-29,-18,-17,0,0,0,0,0,0,-6,-20,0,0,0,-37,-20,-37,-21,-22,-29,-150,-150,-150,-150,-150,-150,-150,-150,-150,-150,-150,-135,-135,-104,-634,-624,-1861,-1796,-1841,-1854,-1904,-1830,-1937,-1862,-1503,-1434,-1434,-940,-5315,-3949,-5381,-5073,-29973,-29974,-29973,-29974,-29964,-6102]} 1. e4 {[%emt 0:00:04][%cal Be2e4,Be4e5][%mdl 32]} c5 {[%emt 0:00:06]} 2. c3 {[%emt 0:00:19]} Nf6 {[%emt 0:00:13]} 3. e5 {[%emt 0:00:05]} Nd5 {[%emt 0:00:03]} 4. Bc4 {[%emt 0:00:28]} Nb6 {[%emt 0:02:39]} 5. Bb3 {[%emt 0:00:06]} d6 {[%emt 0:00:12]} 6. exd6 {[%emt 0:00:05]} Qxd6 {[%emt 0:00:04]} 7. Na3 {[%emt 0:00:06]} a6 {[%emt 0:01:01]} 8. Ne2 {[%emt 0:01:08]} Nc6 {[%emt 0:01:26]} 9. O-O {[%emt 0:02:28]} Bf5 {[%emt 0:04:03]} 10. d4 {[%emt 0:01:54]} cxd4 {[%emt 0:00:12]} 11. Nxd4 {[%emt 0:04:34]} Nxd4 {[%emt 0:00:09]} 12. cxd4 {[%emt 0:00:05]} e6 {[%emt 0:00:12] B22: Sicilian: 2 c3.} 13. Qf3 {[%emt 0:03:15]} Qc6 {[%emt 0:05:03]} (13... Qxd4 $2 14. Be3 Qe4 15. Qxe4 Bxe4 16. Bxb6 $18) 14. Qg3 {[%emt 0:02:02] is currently scoring better than 14.Qxc6+.} Bxa3 {[%emt 0:03:21] The position is equal.} 15. bxa3 {[%emt 0:00:04] aiming for Bb2.} O-O {[%emt 0:00:06]} 16. Bh6 {[%emt 0:00:03][%csl Gh6][%cal Rg3g7]} Bg6 {[%emt 0:00:04]} 17. Rac1 {[%emt 0:00:06]} Qe4 {[%emt 0:01:30]} 18. Rfe1 {[%emt 0:43:51]} Qd3 {[%emt 0:02:08] [#]} 19. Bf4 $146 {[%emt 0:08:24][%cal Bh6f4,Bf4d6,Bd6e7][%mdl 32]} ({Predecessor:} 19. Be3 Nd5 20. Bxd5 exd5 21. Qd6 Be4 22. Bf4 Rfe8 23. Qb4 {½-½ (23) Mamedov,R (2656)-Petkov,M (2496) Konya 2022}) 19... Nd5 {[%emt 0:01:19]} 20. Bd6 {[%emt 0:09:55] And now Qxd3 would win.} Rfd8 {[%emt 0:03:04]} 21. Bxd5 {[%emt 0:03:53]} exd5 {[%emt 0:00:48]} 22. Be7 {[%emt 0:05:01]} Rdc8 {[%emt 0:09:36]} 23. Rxc8+ {[%emt 0:01:39]} Rxc8 {[%emt 0:00:04]} 24. Bc5 {[%emt 0:08:31][%cal Og3c7]} Qd2 {[%emt 0:03:36][%csl LRa2,LRe1][%cal Rd2e1]} 25. Qe5 {[%emt 0:01:52][%cal Oe5e8] White wants to mate with Qe8+!} (25. Bb4 $5 {[%cal Rb4d2]} Qxd4 26. Qc7 $11) 25... h6 {[%emt 0:00:38]} 26. h4 {[%emt 0:00:36]} b6 {[%emt 0:14:45]} (26... Be4 $5 {[%cal Rd2e1]} 27. Bb4 Qxa2 $17) 27. Bb4 {[%emt 0:00:17]} Qxa2 {[%emt 0:01:06]} 28. h5 {[%emt 0:00:03]} Be4 {[%emt 0:01:19]} 29. f3 {[%emt 0:01:59]} Bd3 {[%emt 0:02:53]} 30. Qf4 {[%emt 0:02:28]} Qc2 {[%emt 0:07:11]} 31. Kh2 {[%emt 0:01:39]} Bf5 {[%emt 0:03:00]} 32. Re7 {[%emt 0:02:38]} Be6 {[%emt 0:00:46]} 33. Bd6 {[%emt 0:01:00]} Qf5 {[%emt 0:01:32]} 34. Qxf5 {[%emt 0:00:05]} Bxf5 $11 {[%emt 0:00:03][%mdl 4096] Endgame KRB-KRB} 35. g4 {[%emt 0:01:28]} Bd3 {[%emt 0:05:44]} 36. Rc7 {[%emt 0:02:27]} Ra8 {[%emt 0:02:34]} 37. Rb7 {[%emt 0:02:52]} b5 {[%emt 0:00:05]} 38. Rb8+ {[%emt 0:00:22]} (38. Bb4 $11 {remains equal.}) 38... Rxb8 $17 {[%emt 0:00:04]} 39. Bxb8 {[%emt 0:00:02] [#] KB-KB} a5 $1 {[%emt 0:00:11]} 40. Bd6 {[%emt 0:00:02] [#] Against b4} b4 $1 {[%emt 0:11:31]} 41. axb4 {[%emt 0:50:05]} a4 {[%emt 0:50:03] Strongly threatening ...a3.} 42. b5 {[%emt 0:00:27]} Bxb5 {[%emt 0:00:07]} 43. Kg3 {[%emt 0:00:00]} Be2 {[%emt 0:00:00]} 44. Kf2 {[%emt 0:00:00]} Bd1 {[%emt 0:00:00]} 45. Ke3 $2 {[%emt 0:00:00][%mdl 8192] Loses the game.} (45. Kg3 $17) 45... g5 $19 {[%emt 0:00:00] White must now prevent ...f6.} 46. Kf2 {[%emt 0:00:00]} f5 {[%emt 0:00:00]} 47. gxf5 {[%emt 0:00:00]} Kf7 {[%emt 0:00:00]} 48. Kg3 {[%emt 0:00:00]} Kf6 {[%emt 0:00:00]} 49. Kg4 {[%emt 0:00:00]} Bc2 {[%emt 0:00:00]} 50. Bf8 {[%emt 0:00:00]} Bxf5+ {[%emt 0:00:00]} 51. Kg3 {[%emt 0:00:00]} Bd7 {[%emt 0:00:00]} 52. f4 {[%emt 0:00:00]} g4 {[%emt 0:00:00]} 53. f5 {[%emt 0:00:00]} Kxf5 {[%emt 0:00:00]} 54. Bxh6 {[%emt 0:00:00]} a3 {[%emt 0:00:00][%cal Ba4a3,Ba3a2][%mdl 32] Black mates.} 55. Bc1 {[%emt 0:00:00]} a2 {[%emt 0:00:00]} 56. Bb2 {[%emt 0:00:00]} Kg5 {[%emt 0:00:00] Weighted Error Value: White=0.65/Black=0.11 (very precise)} 0-1

[Event "German Bundesliga 2022-23"]
[Site "Germany"]
[Date "2022.11.25"]
[Round "7.4"]
[White "Edouard, Romain"]
[Black "Stevic, Hrvoje"]
[Result "0-1"]
[ECO "D20"]
[WhiteElo "2548"]
[BlackElo "2543"]
[Annotator "TA"]
[PlyCount "134"]
[EventDate "2022.10.21"]
[EventType "team-tourn"]
[EventCountry "GER"]
[SourceTitle "playchess.com"]
[Source "ChessBase"]
[SourceQuality "1"]
[TimeControl "40/6000+30:3000+30"]

{[%evp 9,134,32,47,18,17,24,15,18,14,0,22,23,31,5,15,28,23,24,13,2,0,0,7,-10,8,-35,1,8,177,135,197,192,211,214,186,218,175,222,188,184,275,286,268,200,220,212,201,187,172,169,178,134,158,154,229,217,208,270,365,147,211,210,210,206,199,-364,-364,-364,-364,-364,-364,-364,-364,-364,-364,-364,-364,-364,-364,-364,0,-364,-364,-364,-364,-364,-364,-382,-382,-382,-382,-382,-382,-382,-382,-382,-382,-382,-382,-504,-382,-382,-382,-505,-505,-505,-382,-382,-382,-505,-505,-5120,-5120,-5120,-5120,-5120,-5113,-5106,-5106,-5106,-5106,-5098,-599,-29996,-29997,-29997,-29998]} 1. d4 {[%emt 0:00:03]} d5 {[%emt 0:00:06]} 2. c4 {[%emt 0:00:04]} dxc4 {[%emt 0:00:04]} 3. e4 {[%emt 0:00:04]} e5 {[%emt 0:00:21]} 4. Nf3 {[%emt 0:00:07]} Bb4+ {[%emt 0:00:15]} 5. Nc3 {[%emt 0:00:17]} Nf6 {[%emt 0:00:07]} 6. Bxc4 {[%emt 0:15:15] D20: Queen's Gambit Accepted: 3 e3 and 3 e4.} (6. Nxe5 $5 {[%cal Rd1a4]} O-O 7. Bxc4 $14) 6... exd4 {[%emt 0:00:36]} 7. Nxd4 {[%emt 0:00:52]} O-O {[%emt 0:00:09][%cal Oc8g4]} 8. f3 {[%emt 0:02:28] Inhibits Bg4. The position is equal.} Qe7 {[%emt 0:00:53]} 9. Qe2 {[%emt 0:01:21]} Rd8 {[%emt 0:00:53]} (9... Qe5 $5 {[%cal Re5d4]} 10. Be3 c5 $11) 10. Be3 {[%emt 0:00:15]} c5 {[%emt 0:00:47]} 11. Nc2 {[%emt 0:00:30]} Bxc3+ {[%emt 0:03:33]} 12. bxc3 {[%emt 0:00:08]} Nc6 {[%emt 0:00:19][%cal Bb8c6,Bc6e5,Be5d3,Bd3c1][%mdl 32]} 13. O-O {[%emt 0:07:31]} Ne5 {[%emt 0:04:17] [#]} 14. Bb3 $146 {[%emt 0:00:49]} ({Predecessor:} 14. Rfd1 Rxd1+ 15. Rxd1 Nxe4 16. Bf4 Nxc4 17. Qxc4 Nf6 18. Bd6 Qe8 19. Bxc5 Be6 20. Qe2 {0-1 (58) Ahlander,B (2421)-Vorobiov,E (2556) Teplice 2019}) 14... b6 {[%emt 0:01:56]} 15. c4 {[%emt 0:05:19]} Be6 {[%emt 0:36:47]} 16. Bc1 {[%emt 0:13:53]} Nd3 {[%emt 0:17:22]} 17. e5 {[%emt 0:06:16]} Bf5 {[%emt 0:00:27]} (17... Ne8 {simplifies} 18. Rd1 Bf5 19. g4 Nxc1 20. Raxc1 Bxc2 21. Bxc2 Nc7) 18. f4 {[%emt 0:01:07]} Ne4 $2 {[%emt 0:19:06]} (18... Bg4 $11 {and Black has nothing to worry.} 19. Qe3 Nh5) 19. Ne3 $18 {[%emt 0:04:36]} Nc3 {[%emt 0:00:30]} (19... g6 $16 {might work better.}) 20. Qc2 {[%emt 0:02:07]} Nxc1 {[%emt 0:00:14]} 21. Nxf5 {[%emt 0:01:59]} N1e2+ {[%emt 0:00:19]} 22. Kh1 {[%emt 0:00:52]} Qe6 {[%emt 0:00:28]} 23. Rae1 $1 {[%emt 0:06:43]} a5 {[%emt 0:08:36]} 24. a4 $1 {[%emt 0:00:57]} (24. Rxe2 Nxe2 25. Nxg7 Ng3+ 26. hxg3 Qh6+ 27. Kg1 Qxg7 $17) (24. Nd6 a4 25. Bxa4 Rxa4 $17) 24... b5 {[%emt 0:08:37]} (24... Nd4 {was called for.} 25. Nxd4 cxd4) 25. cxb5 {[%emt 0:08:21]} (25. Rxe2 Nxe2 26. cxb5 (26. Qxe2 Qxf5 27. Bc2 Qe6 $11) 26... Qd7 $18) 25... c4 {[%emt 0:00:18]} 26. Ba2 {[%emt 0:00:02]} Nxa2 {[%emt 0:01:55]} 27. Rxe2 {[%emt 0:04:18]} Nb4 {[%emt 0:00:25]} 28. Qe4 {[%emt 0:00:04]} c3 {[%emt 0:00:12]} 29. Nd6 {[%emt 0:01:11] Inhibits Rac8. aiming for f5.} Qd5 {[%emt 0:04:50]} 30. b6 {[%emt 0:12:17] Inhibits Ra7.} Rab8 {[%emt 0:00:20]} 31. b7 $1 {[%emt 0:00:03]} Qxe4 {[%emt 0:00:23]} (31... Rd7 $16) 32. Rxe4 {[%emt 0:00:03]} (32. Nxe4 Rd3 33. Rc1 c2 34. Rexc2 (34. Nf2 $2 Rdd8 $19) 34... Nxc2 $19) 32... c2 {[%emt 0:00:08][%cal Ob8b7]} 33. Rc4 {[%emt 0:00:31]} f6 {[%emt 0:01:02]} 34. Rc8 {[%emt 0:02:18]} (34. Kg1 $18) 34... Rdxc8 {[%emt 0:00:34]} (34... Kf8 $16 {was worth a try.} 35. g3 Ke7) 35. bxc8=Q+ {[%emt 0:00:07]} (35. bxc8=B $2 Nd3 36. Be6+ Kf8 $19) 35... Rxc8 36. Nxc8 {[%emt 0:00:09] And now Rc1 would win.} Nd3 {[%emt 0:00:03][%cal Od3f2] Prevents Rc1. Threatens to win with ...Nf2+!} 37. exf6 $4 {[%emt 0:06:46][%mdl 8192] [#]} (37. Ne7+ $2 Kf8 38. Nf5 Nf2+ $1 {[%mdl 512]} 39. Kg1 Nd1 $19) (37. e6 $1 $18 {and all is fine.}) 37... Nf2+ $1 $19 {[%emt 0:01:16][%mdl 576]} 38. Kg1 {[%emt 0:00:05]} Nd1 {[%emt 0:00:01]} 39. Ne7+ {[%emt 0:00:58]} Kf7 {[%emt 0:00:08]} 40. fxg7 {[%emt 0:00:07]} Kxg7 {[%emt 0:00:08]} 41. Nf5+ {[%emt 0:50:25]} Kf7 {[%emt 0:50:34]} 42. Ne3 {[%emt 0:00:06]} c1=Q {[%emt 0:00:08]} (42... c1=B $2 43. Nxd1 Kg8 44. g3 $18) 43. Nxd1 {[%emt 0:00:02][%mdl 4096] Endgame KQ-KRN} Qa3 {[%emt 0:01:38]} 44. Rf3 {[%emt 0:01:46]} Qc1 {[%emt 0:00:00]} 45. Rf1 {[%emt 0:00:00]} Qa1 {[%emt 0:00:00]} 46. g3 {[%emt 0:00:00]} Qxa4 {[%emt 0:00:00]} 47. Nb2 {[%emt 0:00:00]} Qe4 {[%emt 0:00:00]} ({But not} 47... Qd4+ $2 48. Rf2 $19) 48. f5 {[%emt 0:00:00]} h5 {[%emt 0:00:00] Strongly threatening ...h4.} 49. Rf2 {[%emt 0:00:00]} h4 {[%emt 0:00:00]} 50. gxh4 {[%emt 0:00:00]} Kf6 {[%emt 0:00:00]} 51. h5 {[%emt 0:00:00]} a4 {[%emt 0:00:00]} 52. Nxa4 {[%emt 0:00:00]} Qxa4 {[%emt 0:00:00] KQ-KR} 53. h6 {[%emt 0:00:00]} Qg4+ {[%emt 0:00:00]} 54. Kf1 {[%emt 0:00:00]} Qh3+ {[%emt 0:00:00]} 55. Kg1 {[%emt 0:00:00]} Qxh6 {[%emt 0:00:00]} 56. Kh1 {[%emt 0:00:00]} Qc1+ {[%emt 0:00:00]} 57. Kg2 {[%emt 0:00:00]} Qc6+ {[%emt 0:00:00]} 58. Kg1 {[%emt 0:00:00]} Qd5 {[%emt 0:00:00]} 59. Rf1 {[%emt 0:00:00]} Kg5 {[%emt 0:00:00] White must now prevent ...Kg4.} 60. f6 {[%emt 0:00:00]} (60. Rf2 $142) 60... Kg4 {[%emt 0:00:00] ( -> ...Kh3)} 61. Kf2 {[%emt 0:00:00]} Qd2+ {[%emt 0:00:00]} 62. Kg1 {[%emt 0:00:00]} Qd4+ {[%emt 0:00:00]} 63. Kg2 {[%emt 0:00:00]} Qe4+ {[%emt 0:00:00]} 64. Kf2 {[%emt 0:00:00]} Kh3 {[%emt 0:00:00]} 65. f7 {[%emt 0:00:00]} Qe7 $1 {[%emt 0:00:00]} ({Not} 65... Kxh2 66. f8=Q (66. f8=R Qd4+ 67. Kf3 Qe5 $11) 66... Qd4+ 67. Kf3 Qd3+ 68. Kg4 $11) 66. Kg1 {[%emt 0:00:00] Hoping for Rf3+.} Qe2 {[%emt 0:00:00][%csl Gh3][%cal Re2h2] Prevents Rf3+.} 67. Rf2 {[%emt 0:00:00]} Qg4+ {[%emt 0:00:04] Weighted Error Value: White=0.35/Black=0.27 (precise)} 0-1